[Event "EWIRCC 2019"]
[Site "Monte-Carlo"]
[Date "2019.11.30"]
[Round "2.15"]
[White "Andric, Jelena"]
[Black "Mkrtchian, Lilit"]
[Result "0-1"]
[ECO "A09"]
[WhiteElo "2076"]
[BlackElo "2402"]
[Annotator "NA"]
[PlyCount "40"]
[EventDate "2019.11.28"]
[EventType "swiss"]
[EventCountry "MNC"]
[SourceTitle "playchess.com"]
[Source "ChessBase"]
[SourceQuality "1"]
[TimeControl "5400+30"]

1. Nf3 {[%emt 1:15:14]} Nf6 {[%emt 1:15:20]} 2. c4 {[%emt 0:00:22]} e6 {[%emt 0:00:28]} 3. g3 {[%emt 0:00:27]} d5 {[%emt 0:00:29]} 4. Bg2 {[%emt 0:00:46]} d4 {[%emt 0:00:59]} 5. d3 {[%emt 0:01:06]} c5 {[%emt 0:00:43]} 6. O-O {[%emt 0:00:30]} Nc6 {[%emt 0:15:01]} 7. a3 {[%emt 0:01:01]} a5 {[%emt 0:00:00]} 8. Nbd2 {[%emt 0:01:13]} Be7 {[%emt 0:00:00]} 9. Ne1 {[%emt 0:01:13]} e5 {[%emt 0:00:00]} 10. e4 {[%emt 0:02:06]} h5 {[%emt 0:00:00]} 11. h3 {[%emt 0:02:29]} h4 {[%emt 0:00:00]} 12. g4 {[%emt 0:09:33]} Nh7 13. f4 {[%emt 0:00:00]} exf4 {[%emt 0:00:00]} 14. Rxf4 {[%emt 0:00:00]} Bg5 {[%emt 0:00:00]} 15. Rf1 {[%emt 0:00:00]} Be3+ {[%emt 0:00:00]} 16. Kh1 {[%emt 0:00:00]} Ng5 {[%emt 0:00:18]} 17. Ndf3 {[%emt 0:00:00]} Bxg4 {[%emt 0:02:45]} 18. hxg4 {[%emt 0:00:00]} h3 {[%emt 0:00:21]} 19. Bxe3 {[%emt 0:00:00]} dxe3 {[%emt 0:00:44]} 20. Nh2 {[%emt 0:01:07]} hxg2+ {[%emt 0:00:30]} 0-1

[Event "EWIRCC 2019"]
[Site "Monte-Carlo"]
[Date "2019.11.30"]
[Round "2.16"]
[White "Gaponenko, Inna"]
[Black "Berzina, Ilze"]
[Result "1-0"]
[ECO "B12"]
[WhiteElo "2427"]
[BlackElo "2211"]
[Annotator "NA"]
[PlyCount "81"]
[EventDate "2019.11.28"]
[EventType "swiss"]
[EventCountry "MNC"]
[SourceTitle "playchess.com"]
[Source "ChessBase"]
[SourceQuality "1"]
[TimeControl "5400+30"]

1. e4 {[%emt 1:15:11]} c6 {[%emt 1:15:13]} 2. d4 {[%emt 0:00:23]} d5 {[%emt 0:00:22]} 3. e5 {[%emt 0:00:36]} c5 {[%emt 0:00:30]} 4. dxc5 {[%emt 0:00:21]} Nc6 {[%emt 0:00:26]} 5. a3 {[%emt 0:00:22]} Nxe5 {[%emt 0:00:27]} 6. Bb5+ {[%emt 0:00:33]} Nc6 {[%emt 0:00:45]} 7. Nf3 {[%emt 0:00:44]} Bg4 {[%emt 0:01:39]} 8. b4 {[%emt 0:02:23]} e6 {[%emt 0:00:54]} 9. Bb2 {[%emt 0:00:41]} Nf6 {[%emt 0:02:02]} 10. c4 {[%emt 0:01:42]} Be7 {[%emt 0:01:46]} 11. cxd5 {[%emt 0:00:29]} exd5 {[%emt 0:01:38]} 12. h3 {[%emt 0:01:51]} Bh5 {[%emt 0:01:00]} 13. Nbd2 {[%emt 0:00:21]} O-O {[%emt 0:00:33]} 14. O-O {[%emt 0:00:22]} Ne4 {[%emt 0:00:58]} 15. Qb3 {[%emt 0:00:22]} Bf6 {[%emt 0:02:27]} 16. Bxf6 {[%emt 0:02:12]} Nxf6 {[%emt 0:00:36]} 17. Rfe1 {[%emt 0:01:30]} Qc7 {[%emt 0:00:41]} 18. Bxc6 {[%emt 0:00:34]} bxc6 {[%emt 0:00:37]} 19. Nd4 {[%emt 0:00:23]} a5 {[%emt 0:02:10]} 20. Qg3 {[%emt 0:00:50]} Qb7 {[%emt 0:01:14]} 21. Re7 {[%emt 0:03:53]} Qa6 {[%emt 0:01:32]} 22. N2b3 {[%emt 0:00:21]} axb4 {[%emt 0:00:48]} 23. axb4 {[%emt 0:00:21]} Qc4 {[%emt 0:00:44]} 24. Rxa8 {[%emt 0:00:22]} Rxa8 {[%emt 0:00:21]} 25. Nxc6 {[%emt 0:00:45]} Bd1 {[%emt 0:01:44]} 26. Nbd4 {[%emt 0:01:46]} Qc1 {[%emt 0:00:48]} 27. Re1 {[%emt 0:01:23]} h5 {[%emt 0:01:07]} 28. Ne7+ {[%emt 0:01:24]} Kf8 {[%emt 0:00:25]} 29. Nef5 {[%emt 0:00:26]} Ne8 {[%emt 0:00:34]} 30. Ne3 {[%emt 0:00:46]} Qb2 {[%emt 0:00:34]} 31. Rxd1 {[%emt 0:00:24]} Ra1 {[%emt 0:00:22]} 32. Nc6 {[%emt 0:00:48]} Rxd1+ 33. Nxd1 {[%emt 0:00:21]} Qe2 {[%emt 0:01:16]} 34. Ne3 {[%emt 0:00:38]} Qa6 {[%emt 0:00:27]} 35. Ne5 {[%emt 0:00:29]} d4 {[%emt 0:00:24]} 36. Qf4 {[%emt 0:00:37]} Qa1+ {[%emt 0:00:27]} 37. Nf1 {[%emt 0:00:33]} Nf6 {[%emt 0:00:41]} 38. c6 {[%emt 0:00:24]} Qc3 {[%emt 0:00:25]} 39. b5 {[%emt 0:00:39]} d3 {[%emt 0:00:25]} 40. c7 {[%emt 0:00:36]} Kg8 {[%emt 0:00:28]} 41. Nc6 {[%emt 0:00:34]} 1-0

[Event "EWIRCC 2019"]
[Site "Monte-Carlo"]
[Date "2019.11.30"]
[Round "2.18"]
[White "Zhukova, Natalia"]
[Black "Semenova, Elena"]
[Result "1-0"]
[ECO "A18"]
[WhiteElo "2323"]
[BlackElo "2282"]
[Annotator "NA RC"]
[PlyCount "63"]
[EventDate "2019.11.28"]
[EventType "swiss"]
[EventCountry "MNC"]
[SourceTitle "playchess.com"]
[Source "ChessBase"]
[SourceQuality "1"]
[TimeControl "5400+30"]

1. c4 {[%emt 1:15:13]} Nf6 {[%emt 1:15:12]} 2. Nc3 {[%emt 0:00:22]} e6 {[%emt 0:00:21]} 3. e4 {[%emt 0:00:24]} d5 {[%emt 0:00:22]} 4. cxd5 {[%emt 0:00:23]} exd5 {[%emt 0:00:22]} 5. e5 {[%emt 0:00:22]} Ne4 {[%emt 0:00:22]} 6. Nf3 {[%emt 0:00:24]} Bf5 {[%emt 0:01:07]} 7. d3 {[%emt 0:00:25]} Nxc3 {[%emt 0:00:34]} 8. bxc3 {[%emt 0:00:21]} c5 {[%emt 0:00:26]} 9. d4 {[%emt 0:00:27]} Qa5 {[%emt 0:01:00]} 10. Bd2 {[%emt 0:01:05]} Nc6 {[%emt 0:00:24]} 11. Be2 {[%emt 0:02:00]} Be7 {[%emt 0:02:28]} 12. O-O {[%emt 0:00:53]} O-O {[%emt 0:01:56]} 13. a4 {[%emt 0:04:35]} Rac8 {[%emt 0:03:33]} 14. h3 {[%emt 0:02:43]} h6 {[%emt 0:00:36]} 15. Qb3 {[%emt 0:01:49]} cxd4 {[%emt 0:01:43]} 16. cxd4 {[%emt 0:00:26]} Bb4 {[%emt 0:00:45]} 17. Be3 {[%emt 0:01:04]} Ne7 {[%emt 0:01:50]} 18. Rfc1 {[%emt 0:00:48]} Rxc1+ {[%emt 0:00:41]} 19. Rxc1 {[%emt 0:00:22]} Rc8 {[%emt 0:00:30]} 20. Rxc8+ {[%emt 0:00:44]} Nxc8 {[%emt 0:01:31]} 21. Bc1 {[%emt 0:02:50]} Nb6 {[%emt 0:00:59]} 22. Ba3 {[%emt 0:00:40]} Bxa3 {[%emt 0:00:43]} 23. Qxa3 {[%emt 0:00:21]} Qxa4 {[%emt 0:00:39]} 24. Qd6 {[%emt 0:00:34]} Qc6 {[%emt 0:02:06]} 25. Qd8+ {[%emt 0:01:18]} Kh7 {[%emt 0:00:22]} 26. Qe7 {[%emt 0:01:42]} Qd7 {[%emt 0:00:47]} 27. Qc5 {[%emt 0:00:53]} Nc8 {[%emt 0:00:30]} 28. Bb5 {[%emt 0:00:29]} Qe6 {[%emt 0:00:38]} 29. Nh4 {[%emt 0:00:35]} a6 {[%emt 0:01:26]} 30. Nxf5 {[%emt 0:00:27]} Qxf5 {[%emt 0:00:54]} 31. Be2 {[%emt 0:00:21]} Qb1+ {[%emt 0:00:00]} 32. Kh2 1-0

[Event "EWIRCC 2019"]
[Site "Monte-Carlo"]
[Date "2019.11.30"]
[Round "2.20"]
[White "Cornileau, Juliette"]
[Black "Rogule, Laura"]
[Result "0-1"]
[ECO "D58"]
[WhiteElo "1809"]
[BlackElo "2293"]
[Annotator "NA"]
[PlyCount "100"]
[EventDate "2019.11.28"]
[EventType "swiss"]
[EventCountry "MNC"]
[SourceTitle "playchess.com"]
[Source "ChessBase"]
[SourceQuality "1"]
[TimeControl "5400+30"]

1. d4 {[%emt 1:15:12]} d5 {[%emt 1:15:16]} 2. c4 {[%emt 0:00:22]} e6 {[%emt 0:00:22]} 3. Nc3 {[%emt 0:00:22]} Nf6 {[%emt 0:00:24]} 4. Bg5 {[%emt 0:00:27]} Be7 {[%emt 0:01:12]} 5. e3 {[%emt 0:00:34]} O-O {[%emt 0:00:43]} 6. Nf3 {[%emt 0:00:26]} h6 {[%emt 0:01:15]} 7. Bh4 {[%emt 0:01:04]} b6 {[%emt 0:00:56]} 8. cxd5 {[%emt 0:00:44]} exd5 {[%emt 0:00:55]} 9. Bd3 {[%emt 0:00:23]} Bb7 {[%emt 0:00:31]} 10. O-O {[%emt 0:00:27]} Nbd7 {[%emt 0:02:01]} 11. Bg3 {[%emt 0:01:16]} a6 {[%emt 0:01:44]} 12. Ne5 {[%emt 0:00:58]} c5 {[%emt 0:02:38]} 13. Ne2 {[%emt 0:02:25]} c4 {[%emt 0:03:19]} 14. Bc2 {[%emt 0:00:39]} b5 {[%emt 0:00:31]} 15. Nxd7 {[%emt 0:01:10]} Qxd7 {[%emt 0:00:46]} 16. Bf4 {[%emt 0:00:25]} Bd6 {[%emt 0:02:17]} 17. Bxd6 {[%emt 0:00:49]} Qxd6 {[%emt 0:00:21]} 18. Ng3 {[%emt 0:00:30]} g6 {[%emt 0:00:28]} 19. Qd2 {[%emt 0:02:10]} Kg7 {[%emt 0:00:46]} 20. f4 {[%emt 0:01:06]} Rae8 {[%emt 0:00:40]} 21. f5 {[%emt 0:01:04]} g5 {[%emt 0:00:34]} 22. Rae1 {[%emt 0:01:25]} Re7 {[%emt 0:00:27]} 23. Bd1 {[%emt 0:00:27]} Rfe8 {[%emt 0:00:23]} 24. Nh5+ {[%emt 0:00:53]} Nxh5 {[%emt 0:00:24]} 25. Bxh5 {[%emt 0:00:22]} Qf6 {[%emt 0:00:34]} 26. Rf3 {[%emt 0:02:41]} Re4 {[%emt 0:00:58]} 27. h3 {[%emt 0:02:06]} Kg8 {[%emt 0:00:32]} 28. Rff1 {[%emt 0:01:45]} Qd6 {[%emt 0:00:38]} 29. Bf3 {[%emt 0:01:07]} R4e7 {[%emt 0:00:28]} 30. Bd1 {[%emt 0:00:41]} b4 {[%emt 0:00:47]} 31. Bc2 {[%emt 0:00:43]} f6 {[%emt 0:00:33]} 32. Qe2 {[%emt 0:00:48]} Kh7 {[%emt 0:00:53]} 33. Qh5 {[%emt 0:00:33]} Rg8 {[%emt 0:00:21]} 34. Rf3 {[%emt 0:00:41]} Bc6 {[%emt 0:00:26]} 35. Rff1 {[%emt 0:00:34]} Qg3 {[%emt 0:00:33]} 36. Qf3 {[%emt 0:00:22]} Qxf3 {[%emt 0:00:25]} 37. Rxf3 {[%emt 0:00:21]} Rge8 {[%emt 0:00:37]} 38. Kf2 {[%emt 0:00:23]} a5 {[%emt 0:00:48]} 39. g4 {[%emt 0:00:51]} a4 {[%emt 0:00:30]} 40. a3 {[%emt 0:00:32]} bxa3 {[%emt 0:00:25]} 41. bxa3 {[%emt 0:00:21]} Rb7 {[%emt 0:00:27]} 42. Kg3 {[%emt 0:00:35]} Rb2 {[%emt 0:00:27]} 43. Rf2 {[%emt 0:00:22]} c3 {[%emt 0:01:00]} 44. Bd3 {[%emt 0:00:43]} Rd2 {[%emt 0:00:55]} 45. Kg2 {[%emt 0:00:30]} Rxd3 {[%emt 0:00:23]} 46. Kf3 {[%emt 0:00:23]} Rxd4 {[%emt 0:00:31]} 47. Rc1 {[%emt 0:00:25]} Rd3 {[%emt 0:00:25]} 48. Re2 {[%emt 0:00:22]} d4+ {[%emt 0:00:24]} 49. Kf2 {[%emt 0:00:23]} Rdxe3 {[%emt 0:00:34]} 50. Rxe3 {[%emt 0:00:28]} Rxe3 {[%emt 0:00:22]} 0-1